Cogmind - Beta 10.2 @@@ ROGUE MODE // 2021.02.19 @ 00:29:43 Player: aperiodic Result: Destroyed by 8R-AWN with 8R-AWN's Boregun Performance ------------- Evolutions (1) 500 Regions Visited (5) 1000 Robots Destroyed (87) 435 Value Destroyed (1911) 1911 Prototype IDs (33) 660 Alien Tech Used (0) 0 Bonus (450) 450 TOTAL SCORE: 4956 Bonus ------- High Alert Combat Kills 86 Follower Combat Kills 64 Aligned with FarCom 300 Cogmind --------- Core Integrity 0/400 Matter 90/300 Energy 100/100 System Corruption 0% Temperature Cool (0) Movement Treading (160) Location -9/Exiles Parts ------- > --- POWER (1) -------- (None) > --- PROPULSION (2) --- Light Treads Light Treads > --- UTILITY (4) ------ Large Storage Unit Salvage Targeting Computer Improved Targeting Computer > --- WEAPON (2) ------- Autogun Autogun > --- INVENTORY (10) --- Light Treads Light Treads Peak State ------------ > --- POWER ------------ Light Deuterium Engine > --- PROPULSION ------- Carbon-fiber Leg Carbon-fiber Leg > --- UTILITY ---------- Large Storage Unit Large Storage Unit High-capacity Storage Unit Improved Weapon Shielding > --- WEAPON ----------- Autogun Autogun > --- INVENTORY -------- Light Deuterium Engine Light Nuclear Core Light Treads Light Treads Light Treads Carbon-fiber Leg Carbon-fiber Leg High-capacity Storage Unit High-capacity Storage Unit High-capacity Matter Pod Autogun Autogun Grenade Launcher Grenade Launcher Rocket Launcher Mining Laser [Rating: 21] Favorites ----------- Power Heavy Ion Engine Engine Heavy Ion Engine Propulsion Light Treads Treads Light Treads Leg Carbon-fiber Leg Wheel Wheel Utility High-capacity Storage Unit Storage High-capacity Storage Unit Processor Salvage Targeting Computer Protection Improved Weapon Shielding Weapon Autogun Energy Gun Medium Laser Ballistic Gun Autogun Ballistic Cannon Improved Light Cannon Launcher Grenade Launcher Special Weapon Mining Laser Build | -11 -10 -10 -9 -9 -9 ------- Run | Scr Mat Min Mat Min Exi Slots Evolved 2 | . . . 2 . . Power . | . . . . . . Propulsion . | . . . . . . Utility 2 | . . . 2 . . Weapon . | . . . . . . Parts Attached 88 | 6 18 . 42 7 15 Power 5 | 1 1 . 2 1 . Engine 5 | 1 1 . 2 1 . Core . | . . . . . . Reactor . | . . . . . . Propulsion 24 | 2 10 . 10 . 2 Treads 16 | . 6 . 8 . 2 Leg 2 | . . . 2 . . Wheel 6 | 2 4 . . . . Hover . | . . . . . . Flight . | . . . . . . Utility 22 | 1 2 . 9 . 10 Device . | . . . . . . Storage 15 | 1 2 . 7 . 5 Processor 2 | . . . . . 2 Hackware . | . . . . . . Protection 5 | . . . 2 . 3 Artifact . | . . . . . . Weapon 37 | 2 5 . 21 6 3 Energy Gun 1 | 1 . . . . . Energy Cannon . | . . . . . . Ballistic Gun 23 | 1 5 . 12 3 2 Ballistic Cannon 2 | . . . 2 . . Launcher 7 | . . . 3 3 1 Special Weapon 4 | . . . 4 . . Impact Weapon . | . . . . . . Slashing Weapon . | . . . . . . Piercing Weapon . | . . . . . . Special Melee Weapon . | . . . . . . Unidentified Prototypes . | . . . . . . Parts Lost 5 | . . . 1 . 4 Power 1 | . . . . . 1 Propulsion . | . . . . . . Utility 3 | . . . 1 . 2 Weapon 1 | . . . . . 1 Highest Loss Streak 4 | . . . 1 . 4 Average Slot Usage (%) 99 | . 99 100 98 100 99 Engine 11 | . 14 14 11 11 10 Treads 21 | . 20 28 19 22 22 Wheel 1 | . 7 . . . . Storage 29 | . 27 28 32 33 23 Processor 1 | . . . . . 7 Protection 8 | . . . 10 11 12 Ballistic Gun 23 | . 26 28 21 22 21 Naked Turns . | . . . . . . Heaviest Build 112 | 13 31 31 112 112 112 Greatest Support 40 | 20 40 40 40 40 40 Greatest Overweight (x) 3 | . 1 . 3 2 2 Average Overweight (x) 1 | . . . 1 2 1 Largest Inventory Capacity 28 | 6 12 12 28 28 28 Average Capacity 21 | 5 10 12 25 28 20 Most Carried 28 | 6 9 12 28 28 28 Average Carried 20 | 4 8 10 24 27 19 Final Capacity 28 | 6 12 12 28 28 10 Final Carried 28 | 6 9 12 28 28 2 Class Distribution -------------------- 66% | Hauler-Mutant 33% | Mutant Dominant Class ---------------- Mutant | -10/Materials Mutant | -10/Mines Hauler-Mutant | -9/Materials Hauler-Mutant | -9/Mines Hauler-Mutant | -9/Exiles Resources | -11 -10 -10 -9 -9 -9 ----------- Run | Scr Mat Min Mat Min Exi Matter Collected 3022 | 272 691 296 1215 318 230 Remotely . | . . . . . . Salvage Created 2630 | 82 464 282 1451 335 16 Parts 175 | 4 35 10 97 29 . Haulers Intercepted 8 | . 2 . 6 . . Recyclers Shooed 5 | . 1 4 . . . Parts Field Recycled . | . . . . . . Retrieved Matter . | . . . . . . Parts Self-Destructed . | . . . . . . Prevented . | . . . . . . Kills | -11 -10 -10 -9 -9 -9 ------- Run | Scr Mat Min Mat Min Exi Combat Hostiles Destroyed 68 | . 11 6 30 18 3 Guns 51 | . 11 6 22 11 1 AOE 17 | . . . 8 7 2 Classes Destroyed 13 | 2 5 . 3 2 1 Worker 3 | . 2 . 1 . . Builder 1 | . . . 1 . . Tunneler 1 | 1 . . . . . Hauler 8 | . 2 . 6 . . Recycler 2 | 1 . . 1 . . Operator 1 | . . . 1 . . Watcher 6 | . 2 . 4 . . Swarmer 29 | . 6 . 12 11 . Grunt 25 | . 5 6 9 5 . Brawler 1 | . . . . 1 . Duelist 1 | . . . . 1 . Sentry 9 | . . . 9 . . Assembled 3 | . . . . . 3 Best Kill Streak 4 | 2 3 4 4 4 3 Combat Bots Only 4 | . 3 4 4 4 3 Max Kills in Single Turn 2 | 1 1 1 2 2 2 Gunslinging 1 | . . . . 1 . Exploded 2 | . . . 2 2 2 Melee . | . . . . . . Uniques/NPCs Destroyed . | . . . . . . Combat | -11 -10 -10 -9 -9 -9 -------- Run | Scr Mat Min Mat Min Exi Damage Taken 2951 | . 327 313 1171 261 879 Core 535 | . 72 62 191 71 139 Absorbed by Shields . | . . . . . . Core Remaining (%) 73 | 100 . 46 . . . Volleys Fired 254 | 4 52 27 104 29 38 Largest 2 | 2 2 2 2 2 2 Hottest 100 | 70 46 46 100 46 46 Shots Fired 487 | 8 104 54 197 50 74 Gun 466 | 8 104 54 186 42 72 Cannon . | . . . . . . Launcher 17 | . . . 7 8 2 Special 4 | . . . 4 . . Kinetic 462 | 4 104 54 186 42 72 Thermal 8 | 4 . . 4 . . Explosive 17 | . . . 7 8 2 Electromagnetic . | . . . . . . Robot Hit Streak 25 | 4 11 12 18 10 25 Robot Miss Streak 6 | 1 6 4 4 5 1 Penetration Max . | . . . . . . Secondary Targets 5 | . 1 . 1 3 . Max Gunslinging Chain 1 | . 1 . 1 1 . Shots Hit Robots 331 | 5 69 41 121 33 62 Core Hits 140 | 3 24 13 63 24 13 Critical Hits 4 | . . 1 1 2 . Critical Kills 2 | . . . 1 1 . Critical Parts Destroyed 2 | . . 1 . 1 . Melee Attacks . | . . . . . . Impact . | . . . . . . Slashing . | . . . . . . Piercing . | . . . . . . Sneak Attacks . | . . . . . . Combat Hostiles . | . . . . . . Follow-up Attacks . | . . . . . . Damage Inflicted 6198 | 64 952 643 2496 1038 1005 Guns 4670 | 64 949 625 1720 404 908 Cannons . | . . . . . . Explosions 1451 | . . . 739 615 97 Melee . | . . . . . . Ramming 77 | . 3 18 37 19 . Kinetic 4646 | 40 949 625 1720 404 908 Thermal 24 | 24 . . . . . Explosive 1451 | . . . 739 615 97 Electromagnetic . | . . . . . . Impact . | . . . . . . Slashing . | . . . . . . Piercing . | . . . . . . Highest Corruption . | . . . . . . Average Corruption . | . . . . . . Corruption Purged . | . . . . . . Overload Shots . | . . . . . . Overflow Damage 74 | . . . 30 44 . Projectiles . | . . . . . . Explosions 74 | . . . 30 44 . Melee . | . . . . . . Knockbacks . | . . . . . . Impact . | . . . . . . Kinetic . | . . . . . . Secondary . | . . . . . . Self-Inflicted Damage 69 | . . . 69 . . Shots 4 | . . . 4 . . Rammed 12 | . 1 6 4 1 . Targets Rammed 12 | . 1 6 4 1 . Kicked . | . . . . . . Crushed . | . . . . . . Highest Temperature 57 | 27 16 57 22 11 32 Average Temperature 7 | 12 5 19 4 2 8 Received Heat Transfer 713 | . 120 186 318 69 20 Siege Activations . | . . . . . . Robots Corrupted . | . . . . . . Combat Hostiles . | . . . . . . Parts Fried . | . . . . . . Impact Corruptions . | . . . . . . Robots Melted . | . . . . . . Combat Hostiles . | . . . . . . Parts Melted . | . . . . . . Heat Transferred 74 | 74 . . . . . Parts Sabotaged . | . . . . . . Parts Stolen . | . . . . . . Parts Stripped . | . . . . . . Power Chain Reactions . | . . . . . . Missiles Intercepted . | . . . . . . Alert | -11 -10 -10 -9 -9 -9 ------- Run | Scr Mat Min Mat Min Exi Peak Influence 582 | 10 245 306 582 486 . Initial 226 | . 6 63 40 226 . Average 270 | 3 92 177 314 384 . Maximum Alert Level 2 | . 1 1 2 2 . Low Security (%) 34 | 100 88 61 21 . . Level 1 35 | . 11 39 41 41 . Level 2 30 | . . . 36 58 . Level 3 . | . . . . . . Level 4 . | . . . . . . Level 5 . | . . . . . . High Security . | . . . . . . Max Security . | . . . . . . Squads Dispatched 6 | . 2 . 4 . . Investigation 3 | . 2 . 1 . . Extermination . | . . . . . . Reinforcement 3 | . . . 3 . . Assault . | . . . . . . Garrison . | . . . . . . Intercept . | . . . . . . Construction Impeded 1 | . . . 1 . . Haulers Reinforced . | . . . . . . Stealth | -11 -10 -10 -9 -9 -9 --------- Run | Scr Mat Min Mat Min Exi Distress Signals 3 | . . . 3 . . Communications Jammed . | . . . . . . Distress Signals . | . . . . . . Times Spotted 109 | . 22 10 48 24 5 Peak Tracking Total 9 | . 4 3 6 4 9 Tactical Retreats 10 | . 1 3 3 3 . Traps | -11 -10 -10 -9 -9 -9 ------- Run | Scr Mat Min Mat Min Exi Traps Triggered . | . . . . . . Indirectly . | . . . . . . Trap Hack Attempts . | . . . . . . Triggered . | . . . . . . Disarmed . | . . . . . . Reprogrammed . | . . . . . . Reused . | . . . . . . Traps Extracted . | . . . . . . Installed . | . . . . . . Triggered . | . . . . . . Exploded 3 | . . . . . 3 Machines | -11 -10 -10 -9 -9 -9 ---------- Run | Scr Mat Min Mat Min Exi Machines Disabled 6 | . . . 4 1 1 Max in Single Turn 1 | . . . 1 1 1 Machines Sabotaged . | . . . . . . Garrisons Compromised . | . . . . . . Overloaded Fab Kills . | . . . . . . Fab Network Shutdowns . | . . . . . . Hacking | -11 -10 -10 -9 -9 -9 --------- Run | Scr Mat Min Mat Min Exi Machines Accessed 23 | . 9 1 10 1 2 Terminals 16 | . 7 1 7 1 . Fabricators . | . . . . . . Repair Stations 2 | . 1 . 1 . . Recycling Units 1 | . 1 . . . . Scanalyzers 2 | . . . 2 . . Garrison Access . | . . . . . . Total Hacks 66 | . 33 5 25 1 2 Successful 41 | . 18 3 17 1 2 Failed 24 | . 14 2 8 . . Catastrophic 3 | . 2 . 1 . . Database Lockouts 1 | . 1 . . . . Manual 35 | . 20 5 6 3 1 Terminals 48 | . 27 5 15 1 . Fabricators . | . . . . . . Repair Stations 10 | . 5 . 5 . . Recycling Units 1 | . 1 . . . . Scanalyzers 5 | . . . 5 . . Garrison Access . | . . . . . . Terminal Hacks 20 | . 8 3 6 1 2 Record 1 | . . . . . 1 Robot Analysis 3 | . 2 . . 1 . Prototype ID Bank 8 | . 3 3 2 . . Terminal Index 1 | . 1 . . . . Locate Traps 6 | . 2 . 4 . . EX-Prototype ID Bank 1 | . . . . . 1 Fabricator Hacks . | . . . . . . Repair Station Hacks 8 | . 4 . 4 . . Scan Component 4 | . 2 . 2 . . Repair 4 | . 2 . 2 . . Recycling Unit Hacks . | . . . . . . Scanalyzer 4 | . . . 4 . . Insert Component 2 | . . . 2 . . Analyze 2 | . . . 2 . . Garrison Access Hacks . | . . . . . . Unauthorized Hacks 9 | . 6 . 3 . . Terminals 8 | . 5 . 3 . . Track 3 | . 2 . 1 . . Botnet 5 | . 3 . 2 . . Fabricators . | . . . . . . Repair Stations . | . . . . . . Recycling Units 1 | . 1 . . . . Tunnel 1 | . 1 . . . . Scanalyzers . | . . . . . . Garrison Access . | . . . . . . Data Cores Recovered . | . . . . . . Used . | . . . . . . Hacking Detections 19 | . 8 1 9 1 . Full Trace Events 2 | . 1 . 1 . . Feedback Events . | . . . . . . Feedback Blocked . | . . . . . . Robot Schematics Acquired . | . . . . . . Robots Built . | . . . . . . Matter . | . . . . . . Time . | . . . . . . Total Robot Build Rating . | . . . . . . Part Schematics Acquired 2 | . . . 2 . . Parts Built . | . . . . . . Matter . | . . . . . . Time . | . . . . . . Total Part Build Rating . | . . . . . . Parts Repaired 4 | . 2 . 2 . . Time 128 | . 64 . 64 . . Parts Recycled . | . . . . . . Recycled Matter . | . . . . . . Retrieved Matter . | . . . . . . Retrieved Components . | . . . . . . Parts Scanalyzed 2 | . . . 2 . . Part Schematics Acquired 2 | . . . 2 . . Parts Damaged . | . . . . . . Bothacking | -11 -10 -10 -9 -9 -9 ------------ Run | Scr Mat Min Mat Min Exi Used RIF Installer . | . . . . . . Robots Hacked . | . . . . . . Non-combat . | . . . . . . Combat . | . . . . . . Robot Hacks Applied . | . . . . . . Relay Couplers Released . | . . . . . . Robots Rewired . | . . . . . . Allies Hacked . | . . . . . . Hacks Repelled . | . . . . . . Allies | -11 -10 -10 -9 -9 -9 -------- Run | Scr Mat Min Mat Min Exi Total Allies 2 | . . . . 2 . Largest Group 2 | . . . . 2 1 Highest-Rated Group 42 | . . . . 42 31 Highest-Rated Ally 31 | . . . . 31 31 Total Orders . | . . . . . . Ally Attacks 12 | . . . . 12 . Total Damage 190 | . . . . 190 . Kills 4 | . . . . 4 . Allies Corrupted . | . . . . . . Allies Melted . | . . . . . . Intel | -11 -10 -10 -9 -9 -9 ------- Run | Scr Mat Min Mat Min Exi Robot Analysis Total 3 | . 2 . . 1 . Derelict Logs Recovered 3 | . . 2 . 1 . Drone Launches . | . . . . . . Drone Recoveries . | . . . . . . Exploration | -11 -10 -10 -9 -9 -9 ------------- Run | Scr Mat Min Mat Min Exi Turns Passed 7485 | 62 1156 600 2771 1389 1507 Spaces Moved 3575 | 45 643 317 1206 650 714 Core 14 | 14 . . . . . Treads 3144 | . 371 317 1092 650 714 Legs 114 | . . . 114 . . Wheels 303 | 31 272 . . . . Hover . | . . . . . . Flight . | . . . . . . Fastest Speed 50 | 50 80 160 150 200 160 Average Speed 174 | 70 126 160 187 200 186 Slowest Speed 210 | 80 160 160 210 200 200 Overloaded Moves . | . . . . . . Propulsion Burnouts . | . . . . . . Robots Hopped . | . . . . . . Cave-ins Triggered . | . . . . . . Exploration Rate (%) 67 | 3 86 54 94 98 70 Regions Visited 5 Branch Regions 3 Pre-discovered Areas 4 | . 1 1 . 1 1 Known Exits Taken . | . . . . . . Unknown Exits Taken 5 | 1 1 1 1 1 . Scrap Searched 3 | . . 1 . 2 . Spaces Dug 4 | . . . 4 . . Terrain Destroyed 108 | . . . 41 49 18 Melee . | . . . . . . Projectile 4 | . . . 4 . . AOE 104 | . . . 37 49 18 Terrain Rammed . | . . . . . . Walls Destroyed . | . . . . . . Machines Disabled . | . . . . . . Actions | -11 -10 -10 -9 -9 -9 --------- Run | Scr Mat Min Mat Min Exi Total 4413 | 64 899 363 1556 694 837 Wait 347 | 2 165 11 131 4 34 Move 3570 | 44 642 316 1205 649 714 Hop . | . . . . . . Pick Up 80 | 8 12 3 41 2 14 Fast Attach 9 | 4 1 . 2 . 2 Attach 19 | 2 5 . 7 . 5 Detach 1 | . . . 1 . . Swap 60 | . 12 . 33 7 8 Drop 61 | . 9 . 28 2 22 Fire 254 | 4 52 27 104 29 38 Melee . | . . . . . . Ram . | . . . . . . Kick . | . . . . . . Crush 12 | . 1 6 4 1 . Escape Stasis . | . . . . . . Rewire . | . . . . . . Trap . | . . . . . . Miscellaneous . | . . . . . . Route ------- -11/Scrapyard -10/Materials (discovered 5 exits: *Mat x3 / *Min x2) -10/Mines -9/Materials (discovered 4 exits: [*Mat x3] / *Min) -9/Mines (discovered 3 exits: [*Mat x2] / *Exi) -9/Exiles (discovered 2 exits: [*Min x2]) History --------- Turn | Location | Event 2 | -11/Scrapyard | Met Revision 17 7 | -11/Scrapyard | Discovered new exit (range 15) 63 | -11/Scrapyard | Entered Materials 296 | -10/Materials | Discovered new exit (range 5) 308 | -10/Materials | Build established: Mutant 322 | -10/Materials | Discovered new exit (range 16) 538 | -10/Materials | Discovered new exit (range 13) 617 | -10/Materials | Discovered new exit (range 16) 781 | -10/Materials | Discovered new exit (range 6) 913 | -10/Materials | Central database locked down 1034 | -10/Materials | Repaired Autogun 1067 | -10/Materials | Repaired Autogun 1219 | -10/Materials | Entered Mines 1265 | -10/Mines | Core integrity fell below 50% 1413 | -10/Mines | Assembled infested the area 1418 | -10/Mines | Assisted by a Guerilla fighting off Assembled 1524 | -10/Mines | Discovered new exit (range 8) 1601 | -10/Mines | Received a Rocket Launcher from a helpful Derelict 1605 | -10/Mines | Learned Materials trap positions 1819 | -10/Mines | Entered Materials 1819 | -9/Materials | Evolved 2 slots: Utility x2 1820 | -9/Materials | Loaded intel: 16 trap records 2150 | -9/Materials | Repaired Autogun 2184 | -9/Materials | Repaired Autogun 2409 | -9/Materials | Build established: Hauler-Mutant 2940 | -9/Materials | Discovered new exit (range 8) 3409 | -9/Materials | Discovered new exit (range 15) 3753 | -9/Materials | Discovered new exit (range 14) 4342 | -9/Materials | Discovered new exit (range 16) 4590 | -9/Materials | Entered Mines 4641 | -9/Mines | Core integrity fell below 50% 4758 | -9/Mines | Deemed a non-threat by the Exiles lab entrance 4760 | -9/Mines | Discovered new exit (range 5) 4834 | -9/Mines | Learned location of Zion (-6) 4850 | -9/Mines | Found a damaged Exp. Sensor Array with a note attached 4855 | -9/Mines | Found Prototype Device 5134 | -9/Mines | Discovered new exit (range 3) 5597 | -9/Mines | Discovered new exit (range 12) 5979 | -9/Mines | Entered Exiles 5979 | -9/Exiles | Accompanied by 1 ally 6005 | -9/Exiles | Discovered new exit (range 15) 6009 | -9/Exiles | Led the pair of lost Derelicts to a safe place 6029 | -9/Exiles | Met 8R-AWN 6061 | -9/Exiles | Met EX-HEX 6199 | -9/Exiles | Met EX-DEC 6377 | -9/Exiles | Met EX-BIN 6401 | -9/Exiles | Aligned with FarCom system 6403 | -9/Exiles | Given EX-Vault access code 6449 | -9/Exiles | Opened EX-Vault 6495 | -9/Exiles | Warned to stay clear of 0b10 Research branches 6921 | -9/Exiles | Discovered new exit (range 12) 7234 | -9/Exiles | Build established: Mutant 7316 | -9/Exiles | Attacked by the Exiles 7427 | -9/Exiles | Core integrity fell below 20% 7486 | -9/Exiles | Destroyed by 8R-AWN with 8R-AWN's Boregun Last Messages --------------- 07448_ HV Slug penetrates Earth. 07448_ Penetrated by HV Slug. 07448_ HV Slug penetrates Earth. 07452_ Penetrated by HV Slug. 07452_ Critical hit. 07452_ Hrd. Light Armor Plating destroyed. 07452_ HV Slug penetrates Earth. 07452_ Penetrated by HV Slug. 07452_ Imp. Weapon Shielding destroyed. 07452_ HV Slug penetrates Earth. 07456_ Penetrated by HV Slug. 07456_ HV Slug penetrates Earth. 07456_ Penetrated by HV Slug. 07464_ Critical hit. 07464_ Cld. Ion Engine destroyed. 07464_ HV Slug penetrates Earth. 07469_ Penetrated by HV Slug. 07477_ Critical hit. 07477_ Autogun destroyed. 07481_ Penetrated by HV Slug. Map ----- +----------------------------------------------------+ | ?????????????????????????????????????????????????? | | ?????????#####???????????????????????????????????? | | ????????## ##??????????????????????????????????? | | ????????# #??????????????????????????????????? | | ????????# <]!#??????????????????????????????????? | | ????????# ]] ###????????????????????????????????? | | ????????# =!!]! #????????????????????????????????? | | ????????# ]!! ##????????????????????????????????? | | ????????## ! !#?????????????????????????????????? | | ?????????# ]!] ##????????????????????????????????? | | ?????????## [ #????????????#######?????????????? | | ??????????# ] #######??????#!!! "#?????????????? | | ??????????# #""##?????# "#?????????????? | | ??????????## #?????# "#?????????????? | | ???????????##" ##???## ""#?????????????? | | ???????????#"" #####" ""#????????????? | | ???????????#### ##" ""#????????????? | | ??????????????## #"" #??????????????" | | ???????????????#"## #??????????????" | | ???????????????####### ####???????????" | | ?????????????????????### " #?????????? | | ???????????????########" #????????" | | ???????????????# !!""""" g % ????????# | | ???????????????#! ### % ###???### | | ???????????????#! #?##" " "#####X# | | ???????????????#! ]@##??#" | | ???????????????# !""""" #;#???#"# * | | ???????????????########## #???#### | | ???????????????????????? #??????### | | ???????????????????????? #????????### | | ????????????????????????# #??????????## | | ????????????????????????# #???????????## | | ????????????????????????# ????????????##" | | ????????????????????????# #?????????????#""" | | ????????????????????????? ?????????????##" | | ????????????????????????? ?????????????#"" | | ????????????????????????? ?????????????#""" | | ????????????????????????? ????????????#""" | | ????????????????????????? ????????????#""" | | ????????????????????????? ????????????#"" | | ????????????????????????? ????????????#""" | | ??????????????????????????????????????#"" | | ??????????????????????????????????????##"" | | ???????????????????????????????????????#"""" | | ???????????????????????????????????????## | | ????????????????????????????????????????#" | | ????????????????????????????????????????#"""" | | ????????????????????????????????????????#"" | | ?????????????????????????????????????????" | | ?????????????????????????????????????????""" | +----------------------------------------------------+ Best States ------------- Heat Dissipation 28 Energy Generation 14 Energy Capacity 280 Matter Stores 300 Matter Capacity 300 Sight Range 16 Terrain Scan Density 10 Armor Coverage 150 Weapon Shielding 66 Evasion (%) 44 Targeting Accuracy 6 Recoil Reduction 2 Salvage Targeting 1 Item Schematics ----------------- Med. Storage Unit | -9/Materials | Scanalyzed Hcp. Storage Unit | -9/Materials | Scanalyzed Robot Schematics ------------------ None Fabricated ------------ Nothing Alien Tech Used ----------------- None Achievements -------------- None Challenges ------------ None Game ------ Seed CentriumTeslaDrive Manual? 0 Play Time 00:55:23 Cumulative 330.7 hours Start 2021.02.18 @ 22:36:22 End 2021.02.19 @ 00:29:43 Sessions 4 Manual Loads 0 Difficulty Rogue Special Mode None Game No. 114 Rogue 110 Adventurer 4 Explorer 0 Win Type - Total 8 Types 4/1/3/0/0/0/0/0/0 Lore% 75 Gallery% 79 Achievement% 64 Wizard Run 0 Options --------- ASCII 1 Keyboard 0 Movement Arrows Keybinds 0 Fullscreen 1 Font 18/SmallcapsGlow Map View 76x50 Tactical HUD 1 Map Filters NONE Filters NONE Steam 1 RUN: b10b3977-64b9-496c-9e54-0a11cddd9ec3